Cogmind - Beta 13 @@@ ROGUE MODE // 2024.06.04 @ 14:32:46 Player: vilepis Result: Destroyed by 14-MNQ(R) with Subdweller Machine Gun Performance ------------- Evolutions (0) 0 Regions Visited (2) 400 Robots Destroyed (28) 140 Value Destroyed (634) 634 Prototype IDs (0) 0 Alien Tech Used (0) 0 Bonus (0) 0 TOTAL SCORE: 1174 Bonus ------- None Cogmind --------- Core Integrity 0/250 Matter 11/300 Energy 250/250 System Corruption 0% Temperature Cool (0) Movement Rolling (105) Ox1 Location -10/Subcaves Parts ------- > --- POWER (1) -------- Ion Engine > --- PROPULSION (2) --- Wheel Compact Wheel > --- UTILITY (2) ------ Large Storage Unit Power Shielding > --- WEAPON (2) ------- Assault Rifle Grenade Launcher > --- INVENTORY (15) --- Compact Wheel Compact Wheel Compact Wheel Compact Wheel Small Battery (100) Sensor Array Scrap Shield Peak State ------------ > --- POWER ------------ Ion Engine > --- PROPULSION ------- Wheel Compact Wheel > --- UTILITY ---------- Large Storage Unit Power Shielding > --- WEAPON ----------- Assault Rifle Grenade Launcher > --- INVENTORY -------- Compact Wheel Compact Wheel Compact Wheel Compact Wheel Small Battery Sensor Array Scrap Shield [Rating: 8] Favorites ----------- Power Ion Engine Engine Ion Engine Propulsion Compact Wheel Wheel Compact Wheel Utility Large Storage Unit Storage Large Storage Unit Protection Power Shielding Weapon Light Assault Rifle Ballistic Gun Light Assault Rifle Launcher Grenade Launcher Build | -11 -10 -10 ------- Run | Yrd Mat Sub Slots Evolved . | . . . Power . | . . . Propulsion . | . . . Utility . | . . . Weapon . | . . . Parts Attached 21 | 5 16 . Power 2 | . 2 . Engine 2 | . 2 . Core . | . . . Reactor . | . . . Propulsion 7 | 2 5 . Treads . | . . . Leg . | . . . Wheel 7 | 2 5 . Hover . | . . . Flight . | . . . Utility 3 | 1 2 . Device . | . . . Storage 2 | 1 1 . Processor . | . . . Hackware . | . . . Protection 1 | . 1 . Artifact . | . . . Weapon 9 | 2 7 . Energy Gun . | . . . Energy Cannon . | . . . Ballistic Gun 6 | 2 4 . Ballistic Cannon . | . . . Launcher 3 | . 3 . Special Weapon . | . . . Impact Weapon . | . . . Slashing Weapon . | . . . Piercing Weapon . | . . . Special Melee Weapon . | . . . Unidentified Prototypes . | . . . Parts Lost 2 | . 2 . Power 1 | . 1 . Propulsion 1 | . 1 . Utility . | . . . Weapon . | . . . Highest Loss Streak 2 | . 2 . To Critical Strikes . | . . . Average Slot Usage (%) 93 | . 92 100 Engine 12 | . 11 14 Wheel 26 | . 26 28 Storage 14 | . 14 14 Protection 11 | . 10 14 Ballistic Gun 17 | . 17 14 Launcher 10 | . 9 14 Naked Turns . | . . . Heaviest Build 31 | 7 31 31 Greatest Support 32 | 26 32 26 Greatest Overweight (x) 1 | 1 1 1 Average Overweight (x) . | . . 1 Largest Inventory Capacity 15 | 8 15 15 Average Capacity 14 | 7 14 15 Most Carried 8 | . 7 8 Average Carried 4 | . 3 7 Final Capacity 15 | 8 15 15 Final Carried 8 | . 6 8 Class Distribution -------------------- 100% | Mutant Dominant Class ---------------- Mutant | -10/Materials Mutant | -10/Subcaves Resources | -11 -10 -10 ----------- Run | Yrd Mat Sub Matter Collected 332 | 189 143 . Remotely . | . . . Salvage Created 434 | . 222 212 Parts 54 | . 36 18 Haulers Intercepted . | . . . Recyclers Shooed . | . . . Parts Field Recycled . | . . . Retrieved Matter . | . . . Parts Self-Destructed . | . . . Prevented . | . . . Kills | -11 -10 -10 ------- Run | Yrd Mat Sub Combat Hostiles Destroyed 19 | . 12 7 Guns 3 | . 2 1 AOE 16 | . 10 6 Classes Destroyed 7 | . 6 1 Worker 2 | . 2 . Builder 3 | . 3 . Tunneler 1 | . 1 . Watcher 3 | . 3 . Swarmer 9 | . 9 . Grunt 3 | . 3 . Subdweller 7 | . . 7 Best Kill Streak 8 | . 8 7 Combat Bots Only 7 | . 5 7 Max Kills in Single Turn 4 | . 3 4 Gunslinging . | . . . Exploded 3 | . 3 3 Melee . | . . . Uniques/NPCs Destroyed . | . . . Combat | -11 -10 -10 -------- Run | Yrd Mat Sub Hostile Shots Fired 81 | . 69 12 Missed 30 | . 26 4 Damage Taken 719 | . 518 201 Core 269 | . 204 65 Absorbed by Shields . | . . . Redirected to Shielding 17 | . 10 7 Regen/Repaired (Parts) 20 | . 20 . Core Remaining (%) 100 | 100 . . Volleys Fired 30 | . 26 4 Largest 2 | . 2 2 Hottest 50 | . 50 50 Shots Fired 60 | . 52 8 Gun 43 | . 39 4 Cannon . | . . . Launcher 17 | . 13 4 Special . | . . . Kinetic 43 | . 39 4 Thermal . | . . . Explosive 17 | . 13 4 Electromagnetic . | . . . Robot Hit Streak 4 | . 3 4 Robot Miss Streak 7 | . 7 . Penetration Max . | . . . Secondary Targets . | . . . Shots Hit Robots 10 | . 9 1 Core Hits 37 | . 25 12 Critical Kills . | . . . Critical Parts Destroyed . | . . . Critical Strikes . | . . . Melee Attacks . | . . . Impact . | . . . Slashing . | . . . Piercing . | . . . Sneak Attacks . | . . . Combat Hostiles . | . . . Follow-up Attacks . | . . . Damage Inflicted 1965 | . 1213 752 Guns 153 | . 124 29 Cannons . | . . . Explosions 1812 | . 1089 723 Melee . | . . . Ramming . | . . . Kinetic 153 | . 124 29 Thermal 91 | . 91 . Explosive 1721 | . 998 723 Electromagnetic . | . . . Impact . | . . . Slashing . | . . . Piercing . | . . . Highest Corruption . | . . . Average Corruption . | . . . Corruption Purged . | . . . Corruption Blocked . | . . . Overload Shots . | . . . Overflow Damage 27 | . 5 22 Projectiles . | . . . Explosions 27 | . 5 22 Melee . | . . . Knockbacks . | . . . Impact . | . . . Kinetic . | . . . Secondary . | . . . Self-Inflicted Damage 173 | . 173 . Shots 3 | . 3 . Rammed . | . . . Targets Rammed . | . . . Kicked . | . . . Crushed . | . . . Highest Temperature 24 | . 24 . Average Temperature 9 | . 9 . Received Heat Transfer 63 | . 18 45 Siege Activations . | . . . Robots Corrupted . | . . . Combat Hostiles . | . . . Parts Fried . | . . . Impact Corruptions . | . . . Robots Melted . | . . . Combat Hostiles . | . . . Parts Melted . | . . . Heat Transferred 100 | . 100 . Parts Sabotaged . | . . . Parts Stolen . | . . . Parts Stripped . | . . . Power Chain Reactions . | . . . Alert | -11 -10 -10 ------- Run | Yrd Mat Sub Peak Influence 406 | . 406 . Initial . | . . . Average 238 | . 248 . Maximum Alert Level 2 | . 2 . Low Security (%) 43 | 100 41 . Level 1 45 | . 46 . Level 2 11 | . 11 . Level 3 . | . . . Level 4 . | . . . Level 5 . | . . . High Security . | . . . Max Security . | . . . Squads Dispatched . | . . . Investigation . | . . . Extermination . | . . . Reinforcement . | . . . Assault . | . . . Garrison . | . . . Intercept . | . . . Searches Triggered . | . . . Construction Impeded . | . . . Haulers Reinforced . | . . . Active Scanning Responses . | . . . Cargo Convoy Interrupts . | . . . Stealth | -11 -10 -10 --------- Run | Yrd Mat Sub Distress Signals . | . . . Communications Jammed . | . . . Distress Signals . | . . . Times Spotted 26 | . 16 10 Peak Tracking Total 8 | . 5 8 Tactical Retreats . | . . . Traps | -11 -10 -10 ------- Run | Yrd Mat Sub Traps Triggered . | . . . Indirectly . | . . . Trap Hack Attempts . | . . . Triggered . | . . . Disarmed . | . . . Reprogrammed . | . . . Reused . | . . . Traps Extracted . | . . . Installed . | . . . Triggered . | . . . Machines | -11 -10 -10 ---------- Run | Yrd Mat Sub Machines Disabled 9 | . 9 . Max in Single Turn 8 | . 8 . Machines Repaired . | . . . Machines Dismantled . | . . . Machines Sabotaged . | . . . Overloaded Fab Kills . | . . . Hacking | -11 -10 -10 --------- Run | Yrd Mat Sub Machines Accessed 4 | . 4 . Terminals 3 | . 3 . Fabricators . | . . . Repair Stations 1 | . 1 . Recycling Units . | . . . Scanalyzers . | . . . Garrison Access . | . . . Total Hacks 6 | . 6 . Successful 5 | . 5 . Failed 1 | . 1 . Catastrophic . | . . . Database Lockouts . | . . . Manual . | . . . Terminals 3 | . 3 . Fabricators . | . . . Repair Stations 3 | . 3 . Recycling Units . | . . . Scanalyzers . | . . . Garrison Access . | . . . Terminal Hacks 3 | . 3 . Branch Access Points 1 | . 1 . Patrol Status 1 | . 1 . Registered Components 1 | . 1 . Fabricator Hacks . | . . . Repair Station Hacks 2 | . 2 . Scan Component 1 | . 1 . Repair 1 | . 1 . Recycling Unit Hacks . | . . . Scanalyzer . | . . . Garrison Access Hacks . | . . . Unauthorized Hacks . | . . . Terminals . | . . . Fabricators . | . . . Repair Stations . | . . . Recycling Units . | . . . Scanalyzers . | . . . Garrison Access . | . . . Data Cores Recovered . | . . . Used . | . . . Hacking Detections 1 | . 1 . Full Trace Events . | . . . Feedback Events . | . . . Feedback Blocked . | . . . Robot Schematics Acquired . | . . . Robots Built . | . . . Authchips . | . . . Time . | . . . Total Robot Build Rating . | . . . Part Schematics Acquired . | . . . Parts Built . | . . . Authchips . | . . . Time . | . . . Total Part Build Rating . | . . . Parts Repaired 1 | . 1 . Time 26 | . 26 . Parts Recycled . | . . . Recycled Matter . | . . . Retrieved Matter . | . . . Retrieved Components . | . . . Parts Scanalyzed . | . . . Part Schematics Acquired . | . . . Parts Damaged . | . . . Bothacking | -11 -10 -10 ------------ Run | Yrd Mat Sub Used RIF Installer . | . . . Robots Hacked . | . . . Non-combat . | . . . Combat . | . . . Robot Hacks Applied . | . . . Relay Couplers Released . | . . . Fabnet Peak Effective % . | . . . Robots Rewired . | . . . Allies Hacked . | . . . Hacks Repelled . | . . . Allies | -11 -10 -10 -------- Run | Yrd Mat Sub Total Allies . | . . . Largest Group . | . . . Highest-Rated Group . | . . . Highest-Rated Ally . | . . . Total Orders . | . . . Ally Attacks . | . . . Total Damage . | . . . Kills . | . . . Allies Corrupted . | . . . Allies Melted . | . . . Intel | -11 -10 -10 ------- Run | Yrd Mat Sub Robot Analysis Total . | . . . Derelict Logs Recovered . | . . . Drone Launches . | . . . Drone Recoveries . | . . . Exploration | -11 -10 -10 ------------- Run | Yrd Mat Sub Turns Passed 1048 | 38 920 90 Spaces Moved 884 | 35 774 75 Core 4 | 4 . . Treads . | . . . Legs . | . . . Wheels 880 | 31 774 75 Hover . | . . . Flight . | . . . Fastest Speed 50 | 50 90 105 Average Speed 100 | 87 101 105 Slowest Speed 115 | 100 115 105 Overloaded Moves . | . . . Propulsion Burnouts . | . . . Robots Hopped . | . . . Cave-ins Triggered . | . . . Exploration Rate (%) 28 | 3 75 7 Regions Visited 2 Branch Regions 1 Pre-discovered Areas . | . . . Known Exits Taken . | . . . Unknown Exits Taken 2 | 1 1 . Scrap Searched . | . . . Spaces Dug . | . . . Terrain Destroyed 134 | . 106 28 Melee . | . . . Projectile . | . . . AOE 134 | . 106 28 Terrain Rammed . | . . . Walls Destroyed . | . . . Machines Disabled . | . . . Actions | -11 -10 -10 --------- Run | Yrd Mat Sub Total 982 | 39 863 80 Wait 29 | . 29 . Move 882 | 34 773 75 Hop . | . . . Pick Up 11 | . 10 1 Fast Attach 11 | 5 6 . Attach 1 | . 1 . Detach 1 | . 1 . Swap 9 | . 9 . Drop 8 | . 8 . Fire 30 | . 26 4 Melee . | . . . Ram . | . . . Kick . | . . . Crush . | . . . Escape Stasis . | . . . Rewire . | . . . Trap . | . . . Miscellaneous . | . . . Route ------- -11/Scrapyard -10/Materials (discovered 3 exits: [*Mat] / *Min / [*Sub]) -10/Subcaves History --------- Turn | Location | Event 19 | -11/Scrapyard | Discovered new exit (range 15) 39 | -11/Scrapyard | Entered Materials 68 | -10/Materials | Discovered new exit (range 8) 256 | -10/Materials | Discovered new exit (range 13) 302 | -10/Materials | Core integrity fell below 50% 311 | -10/Materials | Build established: Mutant 468 | -10/Materials | Core integrity fell below 20% 612 | -10/Materials | Repaired Grenade Launcher 650 | -10/Materials | Identified exit to Mines 953 | -10/Materials | Discovered new exit (range 6) 959 | -10/Materials | Entered Subcaves 1037 | -10/Subcaves | Ambushed by swarm of Subdwellers 1038 | -10/Subcaves | Ambushed by Subdwellers from Twisted Machinery 1038 | -10/Subcaves | Ambushed by Subdwellers from Twisted Machinery 1046 | -10/Subcaves | Ambushed by Subdwellers from Twisted Machinery 1049 | -10/Subcaves | Destroyed by 14-MNQ(R) with Subdweller Machine Gun Last Messages --------------- Machinery. 01041_ D5-N0T(R) emerges from the Twisted Machinery. 01041_ JQ-P2P(g): "Sorry we're late! Had another grouchy Sub to deal with. Who's the new fellow?" 01041_ HV Slug penetrates S6-UIS(R). 01041_ Destroyed Sub. Monowheel. 01041_ D5-N0T(R) destroyed. 01044_ WS-MZT(R) destroyed. 01044_ H7-WB3(R) destroyed. 01044_ 4H-5DJ(R) destroyed. 01044_ 10-A1F(R) destroyed. 01046_ Subatomizers dissect the Sub. Power Source. 01046_ 14-MNQ(R) angrily emerges from the Twisted Machinery. 01047_ EF-NQR(R) destroyed. 01048_ 5N-61Q(R) destroyed. 01048_ S6-UIS(R) destroyed. Map ----- +----------------------------------------------------+ | ??????????????????????## ##????????????????? | | ?????????????????????## ##?????????????????? | | ???????????????????### ##??????????????????? | | ???????????????????# #????####???????????? | | ???????????????????# ###### ##??????????? | | ???????????????????# ## #??????????? | | ???????????????????## ## #??????????? | | ????????????????????# ## ####???????? | | ??????????????????### ## ## #???????? | | ?????????????????## ##?# #???????? | | ?????????????????# #### #???????? | | ????????????????## ## #???????? | | ????????????????# ### ## ###?????? | | ????????????????# #?### ##### #?????? | | ????????????????## #???# ##??## #?????? | | ?????????????????#### ##?### ##??##### #?????? | | ????????????????????# #??# ##??????##?????? | | ???????????? ???????# #??## ##??? ##??????? | | ???????????? ?#?#??## #???# ## #??????? | | ???????????? # # ??####???# #???????? | | ????????????? ###??????## ## ##??????? | | ??????????????? #??????# ### ##?????? | | ?????????????????# #??###; ; #?????? | | ??????????????????# ## ; ######?????? | | ??????????????????# ;;; g ;#??????????? | | ????????????????### @ ;#???????????? | | ?????????????# &&!%* hgg ;#????????????? | | ?????????????# &%&!*&[ ; ;;#????????????? | | ?????????????##!&%=%]%& ;# ; ;#????????????? | | ?????????????# &*RR*! # ;##?#; ##????????????? | | ?????????????# =%[&=!######???? ;#?????????????? | | ?????????????## !! &#??????????# #?????????????? | | ??????????????#######???????????? ????????????? | | ????????????????????????????????? # ???????????? | | ????????????????????????????????? #?????????????? | | ????????????????????????????????? ?????????????? | | ?????????????????????????????????###?????????????? | | ?????????????????????????????????????????????????? | | ?????????????????????????????????????????????????? | | ?????????????????????????????????????????????????? | | ?????????????????????????????????????????????????? | | ?????????????????????????????????????????????????? | | ?????????????????????????????????????????????????? | | ?????????????????????????????????????????????????? | | ?????????????????????????????????????????????????? | | ?????????????????????????????????????????????????? | | ?????????????????????????????????????????????????? | | ?????????????????????????????????????????????????? | | ?????????????????????????????????????????????????? | | ?????????????????????????????????????????????????? | +----------------------------------------------------+ Best States ------------- Heat Dissipation 25 Energy Generation 10 Energy Capacity 250 Matter Stores 239 Matter Capacity 300 Sight Range 16 Terrain Scan Density 10 Power Shielding 33 Evasion (%) 42 Item Schematics ----------------- None Robot Schematics ------------------ None Fabricated ------------ Nothing Alien Tech Used ----------------- None Achievements -------------- None Challenges ------------ None Game ------ Seed TractorContainmentCompactor Manual? 0 Play Time 00:13:28 Cumulative 1.4 hours Start 2024.06.04 @ 14:20:12 End 2024.06.04 @ 14:32:46 Sessions 1 Manual Loads 0 Difficulty Rogue Special Mode None Game No. 3 Rogue 3 Adventurer 0 Explorer 0 Win Type - Total 0 Types 0/0/0/0/0/0/0/0/0 Lore% 0 Gallery% 4 Achievement% 4 Wizard Run 0 Options --------- Layout 1 ASCII 0 Keyboard 0 Movement Mouse Keybinds 0 Fullscreen 2 Font 32/SmallcapsGlow Map View 50x35 Zoom Use 0% Tactical HUD 1 Map Filters NONE Filters NONE Steam 1 RUN: 4902b1b5-4c51-4611-91cc-7a1fd5fa1745